[Event "Titled Tuesday Blitz November 01 Early 2022"]
[White "Vachylia, Andrii"]
[Black "Rustemov, Alexander"]
[WhiteFideId "14137224"]
[BlackFideId "4119002"]
[WhiteElo "2318"]
[BlackElo "2946"]
[Result "1-0"]
[Round "03"]
[TimeControl "180+1"]
[Date "2022.11.01"]
[WhiteClock "0:00:11"]
[BlackClock "0:00:02"]

1. e4 {[%clk 0:03:00]}  e6 {[%clk 0:02:59]} 2. d4 {[%clk 0:03:01]}  d5 {[%clk 0:03:00]} 3. Nc3 {[%clk 0:03:01]}  dxe4 {[%clk 0:03:00]} 4. Nxe4 {[%clk 0:03:02]}  Bd7 {[%clk 0:03:00]} 5. Nf3 {[%clk 0:03:02]}  Bc6 {[%clk 0:03:01]} 6. Bd3 {[%clk 0:03:02]}  Nd7 {[%clk 0:03:01]} 7. O-O {[%clk 0:03:01]}  Ngf6 {[%clk 0:03:02]} 8. Re1 {[%clk 0:03:02]}  Be7 {[%clk 0:03:01]} 9. c3 {[%clk 0:03:00]}  Nxe4 {[%clk 0:02:59]} 10. Bxe4 {[%clk 0:03:01]}  Bxe4 {[%clk 0:02:59]} 11. Rxe4 {[%clk 0:03:02]}  O-O {[%clk 0:02:52]} 12. Qe2 {[%clk 0:03:01]}  c5 {[%clk 0:02:43]} 13. Rg4 {[%clk 0:02:41]}  Nf6 {[%clk 0:02:41]} 14. Rg3 {[%clk 0:02:40]}  cxd4 {[%clk 0:02:26]} 15. Bh6 {[%clk 0:02:37]}  Nh5 {[%clk 0:02:20]} 16. Qe5 {[%clk 0:02:36]}  Qd5 {[%clk 0:01:41]} 17. Rxg7+ {[%clk 0:01:30]}  Kh8 {[%clk 0:01:40]} 18. Qxd5 {[%clk 0:01:04]}  exd5 {[%clk 0:01:39]} 19. Rg4 {[%clk 0:01:05]}  Rfd8 {[%clk 0:01:20]} 20. Nxd4 {[%clk 0:00:59]}  Bf8 {[%clk 0:01:09]} 21. Bg5 {[%clk 0:00:43]}  Re8 {[%clk 0:01:02]} 22. Rh4 {[%clk 0:00:31]}  Ng7 {[%clk 0:01:02]} 23. Bf6 {[%clk 0:00:31]}  Be7 {[%clk 0:01:00]} 24. Rf4 {[%clk 0:00:29]}  Bxf6 {[%clk 0:00:58]} 25. Rxf6 {[%clk 0:00:30]}  Kg8 {[%clk 0:00:57]} 26. Kf1 {[%clk 0:00:29]}  Ne6 {[%clk 0:00:55]} 27. Nxe6 {[%clk 0:00:24]}  Rxe6 {[%clk 0:00:55]} 28. Rxe6 {[%clk 0:00:24]}  fxe6 {[%clk 0:00:56]} 29. Re1 {[%clk 0:00:25]}  Kf7 {[%clk 0:00:56]} 30. Ke2 {[%clk 0:00:26]}  b5 {[%clk 0:00:55]} 31. Kd3 {[%clk 0:00:25]}  Kf6 {[%clk 0:00:53]} 32. f4 {[%clk 0:00:25]}  h5 {[%clk 0:00:52]} 33. Re5 {[%clk 0:00:24]}  Rg8 {[%clk 0:00:51]} 34. g3 {[%clk 0:00:22]}  h4 {[%clk 0:00:51]} 35. Rg5 {[%clk 0:00:16]}  Rh8 {[%clk 0:00:47]} 36. g4 {[%clk 0:00:16]}  h3 {[%clk 0:00:45]} 37. Rh5 {[%clk 0:00:15]}  Rg8 {[%clk 0:00:44]} 38. Rh6+ {[%clk 0:00:13]}  Ke7 {[%clk 0:00:40]} 39. g5 {[%clk 0:00:13]}  Rf8 {[%clk 0:00:38]} 40. Ke3 {[%clk 0:00:14]}  a5 {[%clk 0:00:32]} 41. Rxh3 {[%clk 0:00:13]}  b4 {[%clk 0:00:32]} 42. cxb4 {[%clk 0:00:11]}  axb4 {[%clk 0:00:32]} 43. Rh7+ {[%clk 0:00:12]}  Kd6 {[%clk 0:00:31]} 44. g6 {[%clk 0:00:12]}  Rf6 {[%clk 0:00:22]} 45. Rh6 {[%clk 0:00:10]}  Rf8 {[%clk 0:00:15]} 46. g7 {[%clk 0:00:10]}  Rg8 {[%clk 0:00:15]} 47. Rg6 {[%clk 0:00:10]}  Ke7 {[%clk 0:00:15]} 48. Kd4 {[%clk 0:00:10]}  Kf7 {[%clk 0:00:15]} 49. Rg5 {[%clk 0:00:10]}  Kf6 {[%clk 0:00:15]} 50. h4 {[%clk 0:00:10]}  Rxg7 {[%clk 0:00:08]} 51. Rxg7 {[%clk 0:00:10]}  Kxg7 {[%clk 0:00:09]} 52. Kc5 {[%clk 0:00:10]}  Kf6 {[%clk 0:00:08]} 53. h5 {[%clk 0:00:10]}  Kf5 {[%clk 0:00:09]} 54. Kxb4 {[%clk 0:00:10]}  d4 {[%clk 0:00:09]} 55. h6 {[%clk 0:00:09]}  Kg6 {[%clk 0:00:01]} 56. Kc4 {[%clk 0:00:09]}  Kxh6 {[%clk 0:00:01]} 57. Kxd4 {[%clk 0:00:10]}  Kg6 {[%clk 0:00:02]} 58. Ke5 {[%clk 0:00:11]} 1-0


[Site "https://www.chess.com"]

[Event "Titled Tuesday Blitz November 01 Early 2022"]
[White "Vrbljanac, Aleksandar"]
[Black "Jones, Gawain C B"]
[WhiteFideId "932817"]
[BlackFideId "409561"]
[WhiteElo "2309"]
[BlackElo "2657"]
[Result "1-0"]
[Round "03"]
[TimeControl "180+1"]
[Date "2022.11.01"]
[WhiteClock "0:00:20"]
[BlackClock "0:00:02"]

1. e4 {[%clk 0:02:51]}  e5 {[%clk 0:02:59]} 2. Nf3 {[%clk 0:02:50]}  Nc6 {[%clk 0:02:59]} 3. Bc4 {[%clk 0:02:47]}  Nf6 {[%clk 0:02:59]} 4. d3 {[%clk 0:02:47]}  h6 {[%clk 0:02:55]} 5. c3 {[%clk 0:02:44]}  d6 {[%clk 0:02:55]} 6. Nbd2 {[%clk 0:02:44]}  g5 {[%clk 0:02:54]} 7. O-O {[%clk 0:02:42]}  Bg7 {[%clk 0:02:50]} 8. Bb3 {[%clk 0:02:39]}  Be6 {[%clk 0:02:49]} 9. Nc4 {[%clk 0:02:31]}  g4 {[%clk 0:02:40]} 10. Ne1 {[%clk 0:02:23]}  d5 {[%clk 0:02:34]} 11. exd5 {[%clk 0:02:16]}  Nxd5 {[%clk 0:02:34]} 12. Ne3 {[%clk 0:02:08]}  Nce7 {[%clk 0:02:27]} 13. N1c2 {[%clk 0:01:45]}  h5 {[%clk 0:02:18]} 14. Nxd5 {[%clk 0:01:41]}  Nxd5 {[%clk 0:02:09]} 15. Ne3 {[%clk 0:01:35]}  Qd7 {[%clk 0:02:07]} 16. Qe2 {[%clk 0:01:19]}  Nf4 {[%clk 0:02:05]} 17. Qc2 {[%clk 0:01:12]}  O-O-O {[%clk 0:01:58]} 18. Rd1 {[%clk 0:00:58]}  f5 {[%clk 0:01:41]} 19. d4 {[%clk 0:00:47]}  exd4 {[%clk 0:01:32]} 20. cxd4 {[%clk 0:00:39]}  Nd5 {[%clk 0:01:32]} 21. Bxd5 {[%clk 0:00:28]}  Bxd5 {[%clk 0:01:32]} 22. Qxf5 {[%clk 0:00:29]}  Be6 {[%clk 0:01:19]} 23. Qe4 {[%clk 0:00:29]}  h4 {[%clk 0:01:02]} 24. d5 {[%clk 0:00:26]}  Rhe8 {[%clk 0:00:42]} 25. Bd2 {[%clk 0:00:18]}  Bxd5 {[%clk 0:00:38]} 26. Qxg4 {[%clk 0:00:18]}  Qxg4 {[%clk 0:00:33]} 27. Nxg4 {[%clk 0:00:19]}  h3 {[%clk 0:00:25]} 28. Bg5 {[%clk 0:00:18]}  Rd6 {[%clk 0:00:19]} 29. Ne3 {[%clk 0:00:18]}  Bxb2 {[%clk 0:00:12]} 30. Rab1 {[%clk 0:00:16]}  Bxa2 {[%clk 0:00:12]} 31. Rxd6 {[%clk 0:00:12]}  Bxb1 {[%clk 0:00:12]} 32. Rd1 {[%clk 0:00:10]}  Be4 {[%clk 0:00:12]} 33. Bf4 {[%clk 0:00:07]}  hxg2 {[%clk 0:00:10]} 34. Nc4 {[%clk 0:00:07]}  Bf6 {[%clk 0:00:08]} 35. Rc1 {[%clk 0:00:07]}  Kd7 {[%clk 0:00:06]} 36. Rd1+ {[%clk 0:00:06]}  Kc8 {[%clk 0:00:05]} 37. Rc1 {[%clk 0:00:06]}  Bc6 {[%clk 0:00:04]} 38. Ne3 {[%clk 0:00:06]}  Be5 {[%clk 0:00:03]} 39. Bg3 {[%clk 0:00:04]}  a5 {[%clk 0:00:03]} 40. Nxg2 {[%clk 0:00:03]}  a4 {[%clk 0:00:03]} 41. Ne3 {[%clk 0:00:01]}  a3 {[%clk 0:00:03]} 42. Nc4 {[%clk 0:00:02]}  Bb2 {[%clk 0:00:02]} 43. Rb1 {[%clk 0:00:02]}  Re2 {[%clk 0:00:02]} 44. Nxb2 {[%clk 0:00:02]}  Rxb2 {[%clk 0:00:02]} 45. Ra1 {[%clk 0:00:03]}  a2 {[%clk 0:00:02]} 46. Be5 {[%clk 0:00:03]}  Re2 {[%clk 0:00:03]} 47. f4 {[%clk 0:00:03]}  b5 {[%clk 0:00:03]} 48. h4 {[%clk 0:00:04]}  Kd7 {[%clk 0:00:03]} 49. h5 {[%clk 0:00:04]}  Be4 {[%clk 0:00:03]} 50. h6 {[%clk 0:00:05]}  Bb1 {[%clk 0:00:03]} 51. Kf1 {[%clk 0:00:05]}  Rh2 {[%clk 0:00:03]} 52. Bg7 {[%clk 0:00:06]}  Rh1+ {[%clk 0:00:03]} 53. Kg2 {[%clk 0:00:06]}  Rh5 {[%clk 0:00:04]} 54. Kg3 {[%clk 0:00:06]}  Ke6 {[%clk 0:00:04]} 55. Kg4 {[%clk 0:00:07]}  Rh1 {[%clk 0:00:04]} 56. f5+ {[%clk 0:00:07]}  Bxf5+ {[%clk 0:00:04]} 57. Kg5 {[%clk 0:00:08]}  Rxa1 {[%clk 0:00:03]} 58. Bxa1 {[%clk 0:00:08]}  c5 {[%clk 0:00:03]} 59. Kf4 {[%clk 0:00:07]}  c4 {[%clk 0:00:04]} 60. Ke3 {[%clk 0:00:07]}  Kd5 {[%clk 0:00:04]} 61. Kd2 {[%clk 0:00:08]}  b4 {[%clk 0:00:04]} 62. Kc1 {[%clk 0:00:08]}  c3 {[%clk 0:00:05]} 63. Kd1 {[%clk 0:00:07]}  Bh7 {[%clk 0:00:04]} 64. Kc1 {[%clk 0:00:08]}  Kc4 {[%clk 0:00:04]} 65. Kd1 {[%clk 0:00:08]}  b3 {[%clk 0:00:05]} 66. Kc1 {[%clk 0:00:09]}  Kb4 {[%clk 0:00:05]} 67. Bb2 {[%clk 0:00:09]}  cxb2+ {[%clk 0:00:04]} 68. Kxb2 {[%clk 0:00:10]}  Kc4 {[%clk 0:00:04]} 69. Ka1 {[%clk 0:00:10]}  Kd3 {[%clk 0:00:05]} 70. Kb2 {[%clk 0:00:11]}  Kd2 {[%clk 0:00:04]} 71. Ka1 {[%clk 0:00:11]}  Bg6 {[%clk 0:00:03]} 72. h7 {[%clk 0:00:12]}  Kc1 {[%clk 0:00:03]} 73. h8=Q {[%clk 0:00:12]}  Bc2 {[%clk 0:00:03]} 74. Qb2+ {[%clk 0:00:12]}  Kd1 {[%clk 0:00:03]} 75. Qa3 {[%clk 0:00:13]}  Kd2 {[%clk 0:00:04]} 76. Qb2 {[%clk 0:00:14]}  Kd3 {[%clk 0:00:04]} 77. Qh8 {[%clk 0:00:15]}  Kd2 {[%clk 0:00:05]} 78. Kb2 {[%clk 0:00:16]}  Kd3 {[%clk 0:00:05]} 79. Qc3+ {[%clk 0:00:16]}  Ke2 {[%clk 0:00:06]} 80. Qd4 {[%clk 0:00:17]}  Kf3 {[%clk 0:00:05]} 81. Kc1 {[%clk 0:00:17]}  Be4 {[%clk 0:00:04]} 82. Qa1 {[%clk 0:00:18]}  Bc2 {[%clk 0:00:04]} 83. Kd2 {[%clk 0:00:18]}  Ke4 {[%clk 0:00:04]} 84. Qb2 {[%clk 0:00:18]}  Kf3 {[%clk 0:00:04]} 85. Ke1 {[%clk 0:00:17]}  Ke3 {[%clk 0:00:04]} 86. Qc3+ {[%clk 0:00:18]}  Bd3 {[%clk 0:00:04]} 87. Qc1+ {[%clk 0:00:15]}  Ke4 {[%clk 0:00:04]} 88. Kd2 {[%clk 0:00:15]}  Bc2 {[%clk 0:00:05]} 89. Kc3 {[%clk 0:00:14]}  Kf3 {[%clk 0:00:04]} 90. Qe1 {[%clk 0:00:14]}  Bb1 {[%clk 0:00:03]} 91. Kb2 {[%clk 0:00:13]}  Bc2 {[%clk 0:00:04]} 92. Ka1 {[%clk 0:00:13]}  Kf4 {[%clk 0:00:04]} 93. Qf2+ {[%clk 0:00:12]}  Ke4 {[%clk 0:00:04]} 94. Qe2+ {[%clk 0:00:12]}  Kd4 {[%clk 0:00:04]} 95. Qd2+ {[%clk 0:00:13]}  Ke4 {[%clk 0:00:04]} 96. Kb2 {[%clk 0:00:14]}  Kf3 {[%clk 0:00:05]} 97. Qc1 {[%clk 0:00:15]}  Ke2 {[%clk 0:00:04]} 98. Kc3 {[%clk 0:00:15]}  Kf3 {[%clk 0:00:05]} 99. Kd4 {[%clk 0:00:16]}  Bb1 {[%clk 0:00:05]} 100. Qb2 {[%clk 0:00:16]}  Bc2 {[%clk 0:00:04]} 101. Kc4 {[%clk 0:00:16]}  Ke3 {[%clk 0:00:05]} 102. Kc3 {[%clk 0:00:17]}  Kf3 {[%clk 0:00:05]} 103. Qc1 {[%clk 0:00:17]}  Ke4 {[%clk 0:00:05]} 104. Kb2 {[%clk 0:00:18]}  Kf3 {[%clk 0:00:05]} 105. Qe1 {[%clk 0:00:18]}  Kf4 {[%clk 0:00:06]} 106. Ka3 {[%clk 0:00:18]}  Bb1 {[%clk 0:00:06]} 107. Qb4+ {[%clk 0:00:18]}  Kg5 {[%clk 0:00:03]} 108. Qc5+ {[%clk 0:00:19]}  Kg6 {[%clk 0:00:02]} 109. Qc6+ {[%clk 0:00:19]}  Kg5 {[%clk 0:00:02]} 110. Qd5+ {[%clk 0:00:19]}  Kg4 {[%clk 0:00:02]} 111. Qd4+ {[%clk 0:00:19]}  Kg5 {[%clk 0:00:03]} 112. Kxb3 {[%clk 0:00:20]}  Kg6 {[%clk 0:00:03]} 113. Kb2 {[%clk 0:00:20]}  Kf5 {[%clk 0:00:04]} 114. Kc1 {[%clk 0:00:21]}  Ke6 {[%clk 0:00:04]} 115. Kd2 {[%clk 0:00:22]}  Kf5 {[%clk 0:00:05]} 116. Ke3 {[%clk 0:00:23]}  Ke6 {[%clk 0:00:05]} 117. Kf4 {[%clk 0:00:23]}  Ke7 {[%clk 0:00:05]} 118. Qe5+ {[%clk 0:00:23]}  Kd7 {[%clk 0:00:05]} 119. Kg5 {[%clk 0:00:24]}  Kc6 {[%clk 0:00:05]} 120. Kf6 {[%clk 0:00:25]}  Kb6 {[%clk 0:00:06]} 121. Ke6 {[%clk 0:00:25]}  Kc6 {[%clk 0:00:06]} 122. Ke7 {[%clk 0:00:25]}  Kb6 {[%clk 0:00:04]} 123. Kd6 {[%clk 0:00:25]}  Kb7 {[%clk 0:00:02]} 124. Qb5+ {[%clk 0:00:25]}  Kc8 {[%clk 0:00:01]} 125. Qa6+ {[%clk 0:00:23]}  Kb8 {[%clk 0:00:01]} 126. Kc6 {[%clk 0:00:19]}  Be4+ {[%clk 0:00:01]} 127. Kb6 {[%clk 0:00:19]}  Bd5 {[%clk 0:00:02]} 128. Qa7+ {[%clk 0:00:19]}  Kc8 {[%clk 0:00:02]} 129. Qc7# {[%clk 0:00:20]} 1-0


[Site "https://www.chess.com"]

[Event "Titled Tuesday Blitz November 01 Early 2022"]
[White "Vusatiuk, Vladimir"]
[Black "Pultinevicius, Paulius"]
[WhiteFideId "14118610"]
[BlackFideId "12809390"]
[WhiteElo "2208"]
[BlackElo "2500"]
[Result "0-1"]
[Round "03"]
[TimeControl "180+1"]
[Date "2022.11.02"]
[WhiteClock "0:00:15"]
[BlackClock "0:00:36"]

1. Nf3 {[%clk 0:03:00]}  Nf6 {[%clk 0:03:00]} 2. c4 {[%clk 0:02:59]}  g6 {[%clk 0:03:00]} 3. g3 {[%clk 0:03:00]}  Bg7 {[%clk 0:03:00]} 4. Bg2 {[%clk 0:03:01]}  O-O {[%clk 0:03:01]} 5. O-O {[%clk 0:03:01]}  c6 {[%clk 0:03:01]} 6. b3 {[%clk 0:02:52]}  Ne4 {[%clk 0:03:01]} 7. Nc3 {[%clk 0:02:51]}  Nxc3 {[%clk 0:03:00]} 8. dxc3 {[%clk 0:02:52]}  Bxc3 {[%clk 0:03:01]} 9. Bh6 {[%clk 0:02:52]}  Bg7 {[%clk 0:03:01]} 10. Bxg7 {[%clk 0:02:52]}  Kxg7 {[%clk 0:03:02]} 11. Qd4+ {[%clk 0:02:52]}  Kg8 {[%clk 0:03:02]} 12. Qh4 {[%clk 0:02:36]}  d6 {[%clk 0:03:02]} 13. Qh6 {[%clk 0:02:29]}  Nd7 {[%clk 0:02:57]} 14. Ng5 {[%clk 0:02:10]}  Nf6 {[%clk 0:02:55]} 15. e4 {[%clk 0:02:01]}  e5 {[%clk 0:02:51]} 16. f4 {[%clk 0:01:50]}  Re8 {[%clk 0:02:50]} 17. fxe5 {[%clk 0:01:43]}  Rxe5 {[%clk 0:02:51]} 18. Rxf6 {[%clk 0:01:31]}  Qxf6 {[%clk 0:02:45]} 19. Qxh7+ {[%clk 0:01:31]}  Kf8 {[%clk 0:02:45]} 20. Rf1 {[%clk 0:01:28]}  Bf5 {[%clk 0:02:41]} 21. exf5 {[%clk 0:01:22]}  Rxf5 {[%clk 0:02:40]} 22. Rxf5 {[%clk 0:01:05]}  gxf5 {[%clk 0:02:41]} 23. Qh4 {[%clk 0:00:56]}  Ke7 {[%clk 0:02:38]} 24. Nf3 {[%clk 0:00:47]}  Qxh4 {[%clk 0:02:34]} 25. Nxh4 {[%clk 0:00:47]}  Kf6 {[%clk 0:02:34]} 26. Bh3 {[%clk 0:00:42]}  f4 {[%clk 0:02:34]} 27. Kf2 {[%clk 0:00:33]}  fxg3+ {[%clk 0:02:34]} 28. hxg3 {[%clk 0:00:27]}  a5 {[%clk 0:02:35]} 29. a4 {[%clk 0:00:26]}  Ra6 {[%clk 0:02:33]} 30. Bg4 {[%clk 0:00:24]}  Rb6 {[%clk 0:02:28]} 31. Bd1 {[%clk 0:00:24]}  d5 {[%clk 0:02:29]} 32. cxd5 {[%clk 0:00:21]}  cxd5 {[%clk 0:02:30]} 33. Nf3 {[%clk 0:00:21]}  Rb4 {[%clk 0:02:30]} 34. Ke3 {[%clk 0:00:21]}  Ke6 {[%clk 0:02:22]} 35. Nd4+ {[%clk 0:00:20]}  Ke5 {[%clk 0:02:22]} 36. Nf3+ {[%clk 0:00:21]}  Kd6 {[%clk 0:02:23]} 37. Nd4 {[%clk 0:00:19]}  Kc5 {[%clk 0:02:24]} 38. Ne2 {[%clk 0:00:18]}  Re4+ {[%clk 0:02:22]} 39. Kd3 {[%clk 0:00:18]}  Re8 {[%clk 0:02:18]} 40. Nf4 {[%clk 0:00:17]}  d4 {[%clk 0:02:18]} 41. g4 {[%clk 0:00:15]}  Re3+ {[%clk 0:02:18]} 42. Kd2 {[%clk 0:00:16]}  Rg3 {[%clk 0:02:00]} 43. Nd3+ {[%clk 0:00:14]}  Kd5 {[%clk 0:01:59]} 44. Be2 {[%clk 0:00:15]}  b6 {[%clk 0:01:55]} 45. Ke1 {[%clk 0:00:11]}  Kd6 {[%clk 0:01:45]} 46. Kf2 {[%clk 0:00:11]}  Rh3 {[%clk 0:01:46]} 47. Bf3 {[%clk 0:00:11]}  Rh8 {[%clk 0:01:41]} 48. Nf4 {[%clk 0:00:10]}  Rc8 {[%clk 0:01:41]} 49. Bd5 {[%clk 0:00:10]}  Ke5 {[%clk 0:01:39]} 50. Kg3 {[%clk 0:00:08]}  Rc3+ {[%clk 0:01:39]} 51. Bf3 {[%clk 0:00:09]}  Rxb3 {[%clk 0:01:39]} 52. g5 {[%clk 0:00:08]}  d3 {[%clk 0:01:39]} 53. g6 {[%clk 0:00:06]}  d2 {[%clk 0:01:37]} 54. gxf7 {[%clk 0:00:06]}  Rxf3+ {[%clk 0:01:34]} 55. Kxf3 {[%clk 0:00:05]}  d1=Q+ {[%clk 0:01:34]} 56. Kg3 {[%clk 0:00:05]}  Qg1+ {[%clk 0:01:29]} 57. Kh4 {[%clk 0:00:04]}  Qh2+ {[%clk 0:01:23]} 58. Nh3 {[%clk 0:00:05]}  Qa2 {[%clk 0:01:00]} 59. f8=Q {[%clk 0:00:05]}  Qxa4+ {[%clk 0:01:01]} 60. Kg5 {[%clk 0:00:05]}  Qb4 {[%clk 0:00:35]} 61. Qf6+ {[%clk 0:00:05]}  Ke4 {[%clk 0:00:35]} 62. Nf4 {[%clk 0:00:04]}  Qc5+ {[%clk 0:00:33]} 63. Kg4 {[%clk 0:00:04]}  Qg1+ {[%clk 0:00:34]} 64. Kh5 {[%clk 0:00:04]}  Qh2+ {[%clk 0:00:33]} 65. Kg4 {[%clk 0:00:04]}  Qg1+ {[%clk 0:00:32]} 66. Kh4 {[%clk 0:00:05]}  Qf2+ {[%clk 0:00:29]} 67. Kg4 {[%clk 0:00:05]}  Qf3+ {[%clk 0:00:29]} 68. Kh4 {[%clk 0:00:03]}  Qxf4+ {[%clk 0:00:29]} 69. Qxf4+ {[%clk 0:00:04]}  Kxf4 {[%clk 0:00:30]} 70. Kh3 {[%clk 0:00:04]}  a4 {[%clk 0:00:31]} 71. Kg2 {[%clk 0:00:05]}  a3 {[%clk 0:00:32]} 72. Kf2 {[%clk 0:00:05]}  a2 {[%clk 0:00:33]} 73. Ke2 {[%clk 0:00:06]}  a1=Q {[%clk 0:00:34]} 74. Kd2 {[%clk 0:00:07]}  Qd4+ {[%clk 0:00:34]} 75. Kc2 {[%clk 0:00:08]}  Qc5+ {[%clk 0:00:35]} 76. Kb1 {[%clk 0:00:09]}  b5 {[%clk 0:00:35]} 77. Ka2 {[%clk 0:00:10]}  b4 {[%clk 0:00:36]} 78. Kb1 {[%clk 0:00:11]}  Qc3 {[%clk 0:00:36]} 79. Ka2 {[%clk 0:00:11]}  b3+ {[%clk 0:00:36]} 80. Ka3 {[%clk 0:00:12]}  b2+ {[%clk 0:00:36]} 81. Ka2 {[%clk 0:00:13]}  Qc2 {[%clk 0:00:35]} 82. Ka3 {[%clk 0:00:14]}  Ke3 {[%clk 0:00:35]} 83. Ka2 {[%clk 0:00:14]}  b1=Q+ {[%clk 0:00:35]} 84. Ka3 {[%clk 0:00:15]}  Qbb3# {[%clk 0:00:36]} 0-1


[Site "https://www.chess.com"]

[Event "Titled Tuesday Blitz November 01 Early 2022"]
[White "Weetik, Vjacheslav"]
[Black "Svane, Rasmus"]
[WhiteFideId "4153472"]
[BlackFideId "4657101"]
[WhiteElo "2469"]
[BlackElo "2674"]
[Result "1-0"]
[Round "03"]
[TimeControl "180+1"]
[Date "2022.11.01"]
[WhiteClock "0:00:08"]
[BlackClock "0:00:12"]

1. e4 {[%clk 0:02:55]}  c6 {[%clk 0:02:59]} 2. d4 {[%clk 0:02:52]}  d5 {[%clk 0:03:00]} 3. e5 {[%clk 0:02:53]}  Bf5 {[%clk 0:02:59]} 4. h4 {[%clk 0:02:53]}  h5 {[%clk 0:02:59]} 5. Bg5 {[%clk 0:02:53]}  Qb6 {[%clk 0:02:59]} 6. Bd3 {[%clk 0:02:53]}  Qxd4 {[%clk 0:02:58]} 7. Nf3 {[%clk 0:02:53]}  Qg4 {[%clk 0:02:59]} 8. Bxf5 {[%clk 0:02:53]}  Qxf5 {[%clk 0:03:00]} 9. c4 {[%clk 0:02:54]}  Qe4+ {[%clk 0:02:54]} 10. Be3 {[%clk 0:02:53]}  Qxc4 {[%clk 0:02:54]} 11. e6 {[%clk 0:02:42]}  fxe6 {[%clk 0:02:54]} 12. Nbd2 {[%clk 0:02:26]}  Qd3 {[%clk 0:02:45]} 13. Ne5 {[%clk 0:02:25]}  Qf5 {[%clk 0:02:44]} 14. Ndf3 {[%clk 0:02:13]}  Nf6 {[%clk 0:02:40]} 15. Qb3 {[%clk 0:02:10]}  b6 {[%clk 0:02:34]} 16. O-O {[%clk 0:01:45]}  Nfd7 {[%clk 0:02:30]} 17. Bd4 {[%clk 0:01:28]}  c5 {[%clk 0:02:22]} 18. Rac1 {[%clk 0:01:25]}  a6 {[%clk 0:01:38]} 19. Rfe1 {[%clk 0:01:21]}  Rh6 {[%clk 0:01:30]} 20. Bxc5 {[%clk 0:01:14]}  Nxc5 {[%clk 0:01:26]} 21. Rxc5 {[%clk 0:01:10]}  Nd7 {[%clk 0:01:23]} 22. Nxd7 {[%clk 0:00:57]}  Kf7 {[%clk 0:00:51]} 23. Ng5+ {[%clk 0:00:40]}  Kg8 {[%clk 0:00:50]} 24. Qxb6 {[%clk 0:00:38]}  e5 {[%clk 0:00:28]} 25. Qb7 {[%clk 0:00:35]}  Rd8 {[%clk 0:00:27]} 26. Qxd5+ {[%clk 0:00:24]}  e6 {[%clk 0:00:26]} 27. Qc6 {[%clk 0:00:18]}  Rxd7 {[%clk 0:00:24]} 28. Rcxe5 {[%clk 0:00:18]}  Rd6 {[%clk 0:00:21]} 29. Qe8 {[%clk 0:00:10]}  Qg4 {[%clk 0:00:12]} 30. Qf7+ {[%clk 0:00:08]} 1-0


[Site "https://www.chess.com"]

[Event "Titled Tuesday Blitz November 01 Early 2022"]
[White "Wieczorek, Oskar"]
[Black "Viana Da Costa, Fernando"]
[WhiteFideId "1133950"]
[BlackFideId "2111900"]
[WhiteElo "2404"]
[BlackElo "2277"]
[Result "1-0"]
[Round "03"]
[TimeControl "180+1"]
[Date "2022.11.02"]
[WhiteClock "0:02:22"]
[BlackClock "0:01:12"]

1. e4 {[%clk 0:03:00]}  c5 {[%clk 0:03:00]} 2. Nf3 {[%clk 0:03:01]}  Nc6 {[%clk 0:03:00]} 3. b4 {[%clk 0:03:01]}  cxb4 {[%clk 0:02:58]} 4. d4 {[%clk 0:03:00]}  d5 {[%clk 0:02:58]} 5. exd5 {[%clk 0:03:01]}  Qxd5 {[%clk 0:02:58]} 6. c4 {[%clk 0:03:02]}  bxc3 {[%clk 0:02:53]} 7. Nxc3 {[%clk 0:03:02]}  Qa5 {[%clk 0:02:53]} 8. Rb1 {[%clk 0:03:03]}  Qxc3+ {[%clk 0:02:29]} 9. Bd2 {[%clk 0:02:29]}  Qa3 {[%clk 0:02:25]} 10. d5 {[%clk 0:02:28]}  Nb8 {[%clk 0:02:12]} 11. Qc2 {[%clk 0:02:26]}  Na6 {[%clk 0:01:16]} 12. Bb5+ {[%clk 0:02:23]}  Kd8 {[%clk 0:01:12]} 13. Ne5 {[%clk 0:02:22]} 1-0


[Site "https://www.chess.com"]

[Event "Titled Tuesday Blitz November 01 Early 2022"]
[White "Xie, Bryan"]
[Black "Luxama, Jacques Muller"]
[WhiteFideId "30941296"]
[BlackFideId "11900113"]
[WhiteElo "2033"]
[BlackElo "1931"]
[Result "1-0"]
[Round "03"]
[TimeControl "180+1"]
[Date "2022.11.02"]
[WhiteClock "0:00:11"]
[BlackClock "0:00:10"]

1. d4 {[%clk 0:01:39]}  Nf6 {[%clk 0:02:59]} 2. Bg5 {[%clk 0:01:35]}  e6 {[%clk 0:02:56]} 3. e4 {[%clk 0:01:31]}  Be7 {[%clk 0:02:55]} 4. Nc3 {[%clk 0:01:30]}  d5 {[%clk 0:02:54]} 5. e5 {[%clk 0:01:30]}  Nfd7 {[%clk 0:02:53]} 6. Bxe7 {[%clk 0:01:30]}  Qxe7 {[%clk 0:02:53]} 7. f4 {[%clk 0:01:29]}  a6 {[%clk 0:02:53]} 8. Nf3 {[%clk 0:01:30]}  c5 {[%clk 0:02:52]} 9. Qd2 {[%clk 0:01:29]}  Nc6 {[%clk 0:02:52]} 10. Nd1 {[%clk 0:01:20]}  cxd4 {[%clk 0:02:50]} 11. Nxd4 {[%clk 0:01:20]}  Nxd4 {[%clk 0:02:48]} 12. Qxd4 {[%clk 0:01:20]}  Qc5 {[%clk 0:02:49]} 13. Qd2 {[%clk 0:01:21]}  b5 {[%clk 0:02:45]} 14. c3 {[%clk 0:01:21]}  Bb7 {[%clk 0:02:44]} 15. Ne3 {[%clk 0:01:19]}  g6 {[%clk 0:02:42]} 16. Nc2 {[%clk 0:01:19]}  g5 {[%clk 0:02:34]} 17. Nd4 {[%clk 0:01:14]}  gxf4 {[%clk 0:02:32]} 18. Qxf4 {[%clk 0:01:14]}  Qc7 {[%clk 0:02:29]} 19. Nf3 {[%clk 0:01:12]}  f6 {[%clk 0:02:23]} 20. Qg4 {[%clk 0:01:11]}  O-O-O {[%clk 0:02:09]} 21. exf6 {[%clk 0:01:10]}  Nxf6 {[%clk 0:02:02]} 22. Qxe6+ {[%clk 0:01:09]}  Nd7 {[%clk 0:02:00]} 23. Be2 {[%clk 0:01:01]}  Rhe8 {[%clk 0:01:59]} 24. Qg4 {[%clk 0:01:01]}  Kb8 {[%clk 0:01:55]} 25. Nd4 {[%clk 0:00:59]}  Ne5 {[%clk 0:01:53]} 26. Qg3 {[%clk 0:00:57]}  Rg8 {[%clk 0:01:49]} 27. Qh3 {[%clk 0:00:43]}  Nc4 {[%clk 0:01:27]} 28. Ne6 {[%clk 0:00:36]}  Qe5 {[%clk 0:01:14]} 29. Nxd8 {[%clk 0:00:34]}  Rxd8 {[%clk 0:01:15]} 30. Qg3 {[%clk 0:00:31]}  d4 {[%clk 0:01:09]} 31. Qxe5+ {[%clk 0:00:29]}  Nxe5 {[%clk 0:01:09]} 32. cxd4 {[%clk 0:00:30]}  Rxd4 {[%clk 0:01:08]} 33. O-O {[%clk 0:00:27]}  Rd2 {[%clk 0:01:05]} 34. Rf2 {[%clk 0:00:25]}  Rxb2 {[%clk 0:00:59]} 35. Re1 {[%clk 0:00:20]}  Rxa2 {[%clk 0:00:57]} 36. Bxb5 {[%clk 0:00:18]}  Rxf2 {[%clk 0:00:54]} 37. Kxf2 {[%clk 0:00:18]}  Ng6 {[%clk 0:00:37]} 38. Bd3 {[%clk 0:00:17]}  Nf4 {[%clk 0:00:30]} 39. Be4 {[%clk 0:00:14]}  Ka7 {[%clk 0:00:22]} 40. Bxb7 {[%clk 0:00:14]}  Nd3+ {[%clk 0:00:21]} 41. Ke2 {[%clk 0:00:12]}  Nxe1 {[%clk 0:00:22]} 42. Be4 {[%clk 0:00:10]}  Nxg2 {[%clk 0:00:18]} 43. Bxg2 {[%clk 0:00:10]}  h6 {[%clk 0:00:18]} 44. Kf3 {[%clk 0:00:11]}  Kb6 {[%clk 0:00:18]} 45. Kg4 {[%clk 0:00:11]}  a5 {[%clk 0:00:18]} 46. Kh5 {[%clk 0:00:11]}  Kc5 {[%clk 0:00:18]} 47. Kxh6 {[%clk 0:00:12]}  a4 {[%clk 0:00:18]} 48. Bh3 {[%clk 0:00:10]}  Kd6 {[%clk 0:00:17]} 49. Bf1 {[%clk 0:00:07]}  Kc5 {[%clk 0:00:16]} 50. Bd3 {[%clk 0:00:08]}  Kd4 {[%clk 0:00:15]} 51. Bb1 {[%clk 0:00:08]}  a3 {[%clk 0:00:14]} 52. Kg7 {[%clk 0:00:07]}  Ke3 {[%clk 0:00:13]} 53. h4 {[%clk 0:00:08]}  Kf4 {[%clk 0:00:13]} 54. h5 {[%clk 0:00:08]}  Kg5 {[%clk 0:00:13]} 55. h6 {[%clk 0:00:09]}  a2 {[%clk 0:00:11]} 56. Bxa2 {[%clk 0:00:09]}  Kh5 {[%clk 0:00:10]} 57. h7 {[%clk 0:00:10]}  Kg5 {[%clk 0:00:10]} 58. h8=Q {[%clk 0:00:11]} 1-0


[Site "https://www.chess.com"]